fUST/lending_fUST_20241108
["ID","MTS","AMOUNT","RATE_DAILY","PERIOD"]
[341672575,1731079855919,-2750.50181323,0.00026999,2]
[341672576,1731079855929,-9482.81627131,0.00026999,7]
[341672577,1731079855938,-632.588617,0.00026999,7]
[341672578,1731079855948,-632.588617,0.00026999,7]
[341672579,1731079855958,-151.0,0.00026999,7]
[341672580,1731079855967,-151.0,0.00026999,7]
[341672581,1731079855976,-151.0,0.00026999,7]
[341672582,1731079855986,-482.293161,0.00026999,7]
[341672583,1731079855995,-482.293161,0.00026999,7]
[341672584,1731079856005,-490.97,0.00027,14]
[341672585,1731079856014,-2238.88,0.00027,14]
[341672586,1731079856023,-10669.8,0.00027,14]
[341672587,1731079856033,-9902.21,0.00027,14]
[341672588,1731079856042,-411.13,0.00027,14]
[341672589,1731079856053,-528.0,0.00027,2]
[341672590,1731079856063,-7909.0,0.00027,7]
[341672591,1731079856072,-151.0,0.00027,7]
[341672592,1731079856082,-151.0,0.00027,7]
[341672593,1731079856091,-151.0,0.00027,7]
[341672594,1731079856100,-267.442301,0.00027,2]
[341672595,1731079856110,-124744.72078859,0.00027,2]
[341672596,1731079856119,-151.0,0.00027,7]
[341672597,1731079856128,-151.0,0.00027,7]
[341672598,1731079856137,-279.210618,0.00027,7]
[341672599,1731079856147,-170.110006,0.00027,7]
[341672600,1731079856156,-151.0,0.00027,7]
[341672601,1731079856165,-151.0,0.00027,7]
[341672602,1731079856175,-151.0,0.00027123,7]
[341672603,1731079856185,-151.0,0.00027123,7]
[341672604,1731079856194,-194.079352,0.00027123,7]
[341672605,1731079856204,-194.079352,0.00027123,7]
[341672606,1731079856213,-242.900311,0.00027123,7]
[341672607,1731079856223,-242.900311,0.00027123,7]
[341672608,1731079856239,-765.72,0.00027123,2]
[341672609,1731079856249,-1445.32,0.00027123,2]
[341672610,1731079856258,-1265.02,0.00027123,2]
[341672611,1731079856267,-284.0,0.00027185,2]
[341672612,1731079856278,-160.434,0.0002719,2]
[341672613,1731079856287,-500.0,0.00027373,2]
[341672614,1731079856300,-500.0,0.00027373,2]
[341672615,1731079856311,-151.0,0.00027397,7]
[341672616,1731079856320,-151.0,0.00027397,7]
[341672617,1731079856330,-154.715714,0.00027397,7]
[341672618,1731079856340,-154.715714,0.00027397,7]
[341672619,1731079856349,-154.715714,0.00027397,7]
[341672620,1731079856358,-154.715714,0.00027397,7]
[341672621,1731079856368,-151.0,0.00027397,7]
[341672622,1731079856377,-151.0,0.00027397,7]
[341672623,1731079856387,-500.0,0.00027397,2]
[341672624,1731079856396,-500.0,0.00027397,2]
[341672625,1731079856405,-500.0,0.00027397,2]
[341672626,1731079856416,-500.0,0.00027397,2]
[341672627,1731079856426,-500.0,0.00027397,2]
[341672628,1731079856435,-500.0,0.00027397,2]
[341672629,1731079856444,-2235.42039142,0.00027397,2]
[341672630,1731079856453,-500.0,0.00027397,2]
[341672631,1731079856463,-2235.42039142,0.00027397,2]
[341672632,1731079856473,-2235.42039142,0.00027397,2]
[341672633,1731079856482,-2235.42039142,0.00027397,2]
[341672634,1731079856492,-500.0,0.00027397,2]
[341672635,1731079856501,-2235.42039142,0.00027397,2]
[341672636,1731079856510,-2235.42039142,0.00027397,2]
[341672637,1731079856519,-2235.42039142,0.00027397,2]
[341672638,1731079856528,-2235.42039142,0.00027397,2]
[341672639,1731079856537,-2235.42039142,0.00027397,2]
[341672640,1731079856548,-2235.42039142,0.00027397,2]
[341672641,1731079856558,-2235.42039142,0.00027397,2]
[341672642,1731079856569,-2235.42039142,0.00027397,2]
[341672643,1731079856579,-2235.42039142,0.00027397,2]
[341672644,1731079856588,-2235.42039142,0.00027397,2]
[341672645,1731079856598,-2235.42039142,0.00027397,2]
[341672646,1731079856607,-2235.42039142,0.00027397,2]
[341672647,1731079856617,-2235.42039142,0.00027397,2]
[341672648,1731079856626,-2235.42039142,0.00027397,2]
[341672649,1731079856635,-2235.42039142,0.00027397,2]
[341672650,1731079856644,-2235.42039142,0.00027397,2]
[341672651,1731079856653,-2235.42039142,0.00027397,2]
[341672652,1731079856663,-2235.42039142,0.00027397,2]
[341672653,1731079856672,-2235.42039142,0.00027397,2]
[341672654,1731079856681,-2235.42039142,0.00027397,2]
[341672655,1731079856691,-2235.42039142,0.00027397,2]
[341672656,1731079856700,-2235.42039142,0.00027397,2]
[341672657,1731079856709,-2235.42039142,0.00027397,2]
[341672658,1731079856718,-2235.42039142,0.00027397,2]
[341672659,1731079856727,-2235.42039142,0.00027397,2]
[341672660,1731079856737,-2235.42039142,0.00027397,2]
[341672661,1731079856746,-2235.42039142,0.00027397,2]
[341672662,1731079856755,-2235.42039142,0.00027397,2]
[341672663,1731079856764,-2235.42039142,0.00027397,2]
[341672664,1731079856773,-2235.42039142,0.00027397,2]
[341672665,1731079856782,-2235.42039142,0.00027397,2]
[341672666,1731079856791,-2235.42039142,0.00027397,2]
[341672667,1731079856804,-2235.42039142,0.00027397,2]
[341672668,1731079856813,-2235.42039142,0.00027397,2]
[341672669,1731079856822,-2235.42039142,0.00027397,2]
[341672670,1731079856831,-2235.42039142,0.00027397,2]
[341672671,1731079856841,-2235.42039142,0.00027397,2]
[341672672,1731079856849,-2235.42039142,0.00027397,2]
[341672673,1731079856859,-2235.42039142,0.00027397,2]
[341672674,1731079856868,-2235.42039142,0.00027397,2]
[341672675,1731079856878,-2235.42039142,0.00027397,2]
[341672676,1731079856887,-151.0,0.00027397,7]
[341672677,1731079856896,-2235.42039142,0.00027397,2]
[341672678,1731079856905,-2235.42039142,0.00027397,2]
[341672679,1731079856915,-500.0,0.00027397,2]
[341672680,1731079856926,-500.0,0.00027397,2]
[341672681,1731079856935,-500.0,0.00027397,2]
[341672682,1731079856945,-500.0,0.00027397,2]
[341672683,1731079856954,-500.0,0.00027397,2]
[341672684,1731079857034,-500.0,0.00027397,2]
[341672685,1731079857046,-548.29484722,0.00027397,2]
[341672686,1731079857056,-2199.0298269,0.00027397,2]
[341672687,1731079857066,-2199.0298269,0.00027397,2]
[341672688,1731079857075,-2199.0298269,0.00027397,2]
[341672689,1731079857084,-2199.0298269,0.00027397,2]
[341672690,1731079857094,-2199.0298269,0.00027397,2]
[341672691,1731079857103,-2199.0298269,0.00027397,2]
[341672692,1731079857113,-2199.0298269,0.00027397,2]
[341672693,1731079857122,-2199.0298269,0.00027397,2]
[341672694,1731079857131,-2199.0298269,0.00027397,2]
[341672695,1731079857140,-2199.0298269,0.00027397,2]
[341672696,1731079857150,-2199.0298269,0.00027397,2]
[341672697,1731079857160,-2199.0298269,0.00027397,2]
[341672698,1731079857169,-2199.0298269,0.00027397,2]
[341672699,1731079857179,-2199.0298269,0.00027397,2]
[341672700,1731079857189,-2199.0298269,0.00027397,2]
[341672701,1731079857199,-2199.0298269,0.00027397,2]
[341672702,1731079857209,-2199.0298269,0.00027397,2]
[341672703,1731079857218,-2199.0298269,0.00027397,2]
[341672704,1731079857232,-2199.0298269,0.00027397,2]
[341672705,1731079857244,-2199.0298269,0.00027397,2]
[341672706,1731079857253,-2199.0298269,0.00027397,2]
[341672707,1731079857265,-2199.0298269,0.00027397,2]
[341672708,1731079857274,-2199.0298269,0.00027397,2]
[341672709,1731079857284,-2199.0298269,0.00027397,2]
[341672710,1731079857294,-2199.0298269,0.00027397,2]
[341672711,1731079857308,-2199.0298269,0.00027397,2]
[341672712,1731079857318,-2199.0298269,0.00027397,2]
[341672713,1731079857328,-450.0,0.00027397,2]
[341672714,1731079857337,-2126.8741607,0.00027397,2]
[341672715,1731079857347,-2126.8741607,0.00027397,2]
[341672716,1731079857356,-2126.8741607,0.00027397,2]
[341672717,1731079857366,-203.303544,0.00027397,7]
[341672718,1731079857375,-2126.8741607,0.00027397,2]
[341672719,1731079857385,-2126.8741607,0.00027397,2]
[341672720,1731079857394,-2126.8741607,0.00027397,2]
[341672721,1731079857403,-2126.8741607,0.00027397,2]
[341672722,1731079857413,-2126.8741607,0.00027397,2]
[341672723,1731079857423,-2126.8741607,0.00027397,2]
[341672724,1731079857433,-203.303544,0.00027397,7]
[341672725,1731079857442,-2126.8741607,0.00027397,2]
[341672726,1731079857452,-2126.8741607,0.00027397,2]
[341672727,1731079857462,-2126.8741607,0.00027397,2]
[341672728,1731079857471,-2126.8741607,0.00027397,2]
[341672729,1731079857481,-2126.8741607,0.00027397,2]
[341672730,1731079857490,-2126.8741607,0.00027397,2]
[341672731,1731079857499,-2126.8741607,0.00027397,2]
[341672732,1731079857509,-203.303544,0.00027397,7]
[341672733,1731079857518,-203.303544,0.00027397,7]
[341672734,1731079857527,-368.365278,0.00027397,7]
[341672735,1731079857536,-368.365278,0.00027397,7]
[341672736,1731079857548,-500.0,0.00027397,2]
[341672737,1731079857561,-368.365278,0.00027397,7]
[341672738,1731079857570,-368.365278,0.00027397,7]
[341672739,1731079857580,-500.0,0.00027397,2]
[341672740,1731079857589,-500.0,0.00027397,2]
[341672741,1731079857598,-518.84298599,0.00027397,2]
[341672742,1731079857608,-151.0,0.00027397,7]
[341672743,1731079857617,-151.0,0.00027397,7]
[341672744,1731079857627,-151.0,0.00027397,7]
[341672745,1731079857636,-151.0,0.00027397,7]
[341672746,1731079857646,-194.079352,0.00027397,7]
[341672747,1731079857655,-194.079352,0.00027397,7]
[341672748,1731079857665,-242.900311,0.00027397,7]
[341672749,1731079857674,-242.900311,0.00027397,7]
[341672750,1731079857683,-632.588617,0.00027397,7]
[341672751,1731079857693,-632.588617,0.00027397,7]
[341672752,1731079857702,-1000.0,0.00027397,2]
[341672753,1731079857711,-1000.0,0.00027397,2]
[341672754,1731079857721,-1000.0,0.00027397,2]
[341672755,1731079857730,-1079.41503591,0.00027397,2]
[341672756,1731079857740,-151.0,0.00027397,7]
[341672757,1731079857748,-151.0,0.00027397,7]
[341672758,1731079857758,-151.0,0.00027397,7]
[341672759,1731079857767,-1000.0,0.00027397,2]
[341672760,1731079857777,-856.68562342,0.00027397,2]
[341672761,1731079857786,-482.293161,0.00027397,7]
[341672762,1731079857795,-482.293161,0.00027397,7]
[341672763,1731079857806,-151.0,0.00027397,7]
[341672764,1731079857815,-765.72,0.00027397,2]
[341672765,1731079857824,-1445.32,0.00027397,2]
[341672766,1731079857834,-161.543036,0.00027397,7]
[341672767,1731079857843,-161.543036,0.00027397,7]
[341672768,1731079857852,-1265.02,0.00027397,2]
[341672769,1731079857861,-416.5751,0.00027397,7]
[341672770,1731079857870,-416.5751,0.00027397,7]
[341672771,1731079857879,-151.0,0.00027397,7]
[341672772,1731079857889,-151.0,0.00027397,7]
[341672773,1731079857898,-151.0,0.00027397,7]
[341672774,1731079857908,-151.0,0.00027397,7]
[341672775,1731079857917,-150.06,0.00027397,2]
[341672776,1731079857928,-150.06,0.00027397,2]
[341672777,1731079857937,-432.37393813,0.00027397,2]
[341672778,1731079857947,-151.0,0.00027397,2]
[341672779,1731079857956,-151.0,0.00027397,2]
[341672780,1731079857965,-151.0,0.00027397,2]
[341672781,1731079857975,-151.0,0.00027397,7]
[341672782,1731079857984,-151.0,0.00027397,7]
[341672783,1731079857993,-160.0,0.00027499,10]
[341672784,1731079858003,-10254.41400724,0.000275,2]
[341672785,1731079858087,-16651.02145449,0.000275,2]
[341672786,1731079858097,-416.5751,0.00027552,7]
[341672787,1731079858106,-416.5751,0.00027552,7]
[341672788,1731079858116,-151.0,0.00027573,5]
[341672789,1731079858125,-150.06,0.00027671,2]
[341672790,1731079858134,-765.72,0.00027671,2]
[341672791,1731079858144,-1445.32,0.00027671,2]
[341672792,1731079858154,-1265.02,0.00027671,2]
[341672793,1731079858163,-754.82405995,0.00027881,2]
[341672794,1731079858172,-160.0,0.00027899,10]
[341672795,1731079858182,-490.97,0.000279,14]
[341672796,1731079858191,-2238.88,0.000279,30]
[341672797,1731079858200,-10669.8,0.000279,30]
[341672798,1731079858209,-9902.21,0.000279,14]
[341672799,1731079858219,-151.0,0.000279,7]
[341672800,1731079858228,-205.19404,0.000279,7]
[341672801,1731079858238,-161.543036,0.000279,7]
[341672802,1731079858249,-161.543036,0.000279,7]
[341672803,1731079858258,-150.06,0.00027945,2]
[341672804,1731079858269,-632.588617,0.00027945,7]
[341672805,1731079858278,-632.588617,0.00027945,7]
[341672806,1731079858287,-765.72,0.00027945,2]
[341672807,1731079858298,-1445.32,0.00027945,2]
[341672808,1731079858308,-1265.02,0.00027945,2]
[341672809,1731079858319,-411.13,0.000281,14]
[341672810,1731079858328,-151.0,0.00028105,5]
[341672811,1731079858337,-151.0,0.00028105,7]
[341672812,1731079858346,-151.0,0.00028105,7]
[341672813,1731079858355,-151.0,0.00028105,7]
[341672814,1731079858365,-482.293161,0.00028105,7]
[341672815,1731079858376,-482.293161,0.00028105,7]
[341672816,1731079858386,-151.0,0.00028105,2]
[341672817,1731079858396,-823.0,0.00028109,2]
[341672818,1731079858405,-200.0,0.0002815,20]
[341672819,1731079858414,-209.83292638,0.00028219,2]
[341672820,1731079858423,-765.86925049,0.00028219,2]
[341672821,1731079858432,-1445.49672506,0.00028219,2]
[341672822,1731079858441,-1265.09607866,0.00028219,2]
[341672823,1731079858450,-160.428,0.0002822,30]
[341672824,1731079858459,-150.0,0.00028413,2]
[341672825,1731079858468,-500.0,0.00028478,7]
[341672826,1731079858477,-600.0,0.00028512,2]
[341672827,1731079858487,-151.0,0.00028637,5]
[341672828,1731079858496,-4237.03,0.00028637,30]
[341672829,1731079858506,-151.0,0.00028742,7]
[341672830,1731079858515,-151.0,0.00028742,7]
[341672831,1731079858595,-1000.0,0.00028742,5]
[341672832,1731079858606,-1000.0,0.00028742,5]
[341672833,1731079858615,-150.0,0.00028757,2]
[341672834,1731079858624,-721.579,0.00028757,2]
[341672835,1731079858634,-500.0,0.00028767,2]
[341672836,1731079858643,-490.97,0.000288,14]
[341672837,1731079858653,-2238.88,0.000288,30]
[341672838,1731079858662,-9902.21,0.000288,14]
[341672839,1731079858672,-10669.8,0.000288,30]
[341672840,1731079858681,-600.0,0.00028809,2]
[341672841,1731079858690,-160.442,0.0002886,3]
[341672842,1731079858699,-754.82405995,0.00028874,2]
[341672843,1731079858709,-282.0,0.00028997,2]
[341672844,1731079858719,-859.98702931,0.00029,2]
[341672845,1731079858728,-1333.0,0.00029041,120]
[341672846,1731079858737,-411.13,0.000291,14]
[341672847,1731079858746,-600.0,0.00029106,2]
[341672848,1731079858755,-257.40443719,0.00029139,2]
[341672849,1731079858765,-151.0,0.00029168,6]
[341672850,1731079858774,-151.0,0.00029168,6]
[341672851,1731079858784,-151.0,0.00029168,7]
[341672852,1731079858793,-151.0,0.00029168,7]
[341672853,1731079858804,-151.0,0.00029168,7]
[341672854,1731079858814,-151.0,0.00029168,7]
[341672855,1731079858823,-150.39921,0.000292,2]
[341672856,1731079858832,-163.539684,0.00029349,2]
[341672857,1731079858841,-431609.5287571,0.00029403,2]
[341672858,1731079858853,-101018.26549586,0.00029403,2]
[341672859,1731079987201,215.44,0.00020843,2]
[341672861,1731080203418,164.985382,0.00013973,2]
[341672862,1731080229432,694.44444444,0.00020843,2]
[341672863,1731080265782,3000.0,0.0002,2]
[341672864,1731080587941,5370.50211764,0.00027,60]
[341672865,1731080841440,694.44444444,0.00020843,2]
[341672868,1731080898275,164.964332,0.00013973,2]
[341672939,1731081032669,-629.0,0.00021115,2]
[341672940,1731081032679,-246.671419,0.00021115,2]
[341672941,1731081032689,-1.881631,0.00021817,2]
[341672942,1731081032702,-288.17839396,0.00021817,2]
[341672943,1731081032711,-300.0,0.00021916,2]
[341672944,1731081032720,-281.71055692,0.00021917,2]
[341672945,1731081032729,-313.62427912,0.00021917,2]
[341673050,1731081039049,-165.381478,0.00021132,2]
[341673052,1731081039058,-165.381478,0.00021816,2]
[341673054,1731081039068,-500.0,0.00021917,2]
[341673056,1731081039077,-500.0,0.00021917,2]
[341673058,1731081039087,-500.0,0.00021917,2]
[341673060,1731081039096,-500.0,0.00021917,2]
[341673062,1731081039105,-500.0,0.00021917,2]
[341673064,1731081039115,-500.0,0.00021917,2]
[341673066,1731081039125,-500.0,0.00021917,2]
[341673068,1731081039134,-500.0,0.00021917,2]
[341673071,1731081039144,-500.0,0.00021917,2]
[341673073,1731081039154,-510.57547254,0.00021917,2]
[341673075,1731081039163,-500.0,0.00021917,2]
[341673076,1731081039173,-500.0,0.00021917,2]
[341673077,1731081039182,-500.0,0.00021917,2]
[341673078,1731081039191,-500.0,0.00021917,2]
[341673079,1731081039200,-500.0,0.00021917,2]
[341673080,1731081039209,-500.0,0.00021917,2]
[341673081,1731081039218,-500.0,0.00021917,2]
[341673082,1731081039227,-520.5872673,0.00021917,2]
[341673083,1731081039236,-500.0,0.00021917,2]
[341673084,1731081039248,-468.1426805,0.00021917,2]
[341673085,1731081039258,-500.0,0.00021917,2]
[341673086,1731081039267,-500.0,0.00021917,2]
[341673087,1731081039276,-500.0,0.00021917,2]
[341673088,1731081039286,-500.0,0.00021917,2]
[341673089,1731081039296,-500.0,0.00021917,2]
[341673090,1731081039307,-500.0,0.00021917,2]
[341673091,1731081039316,-216.05598188,0.00021917,2]
[341673092,1731081039326,-500.0,0.00021917,2]
[341673093,1731081039335,-500.0,0.00021917,2]
[341673094,1731081039344,-500.0,0.00021917,2]
[341673095,1731081039353,-500.0,0.00021917,2]
[341673096,1731081039362,-500.0,0.00021917,2]
[341673097,1731081039371,-500.0,0.00021917,2]
[341673098,1731081039381,-500.0,0.00021917,2]
[341673099,1731081039390,-500.0,0.00021917,2]
[341673100,1731081039399,-500.0,0.00021917,2]
[341673101,1731081039408,-500.0,0.00021917,2]
[341673102,1731081039417,-500.0,0.00021917,2]
[341673103,1731081039426,-500.0,0.00021917,2]
[341673104,1731081039435,-500.0,0.00021917,2]
[341673105,1731081039444,-523.76164326,0.00021917,2]
[341673106,1731081039453,-251.99491138,0.00021917,2]
[341673107,1731081039462,-500.0,0.00021917,2]
[341673108,1731081039470,-500.0,0.00021917,2]
[341673109,1731081039479,-500.0,0.00021917,2]
[341673110,1731081039488,-500.0,0.00021917,2]
[341673111,1731081039499,-500.0,0.00021917,2]
[341673112,1731081039508,-180.87726891,0.00021917,2]
[341673113,1731081039517,-500.0,0.00021917,2]
[341673114,1731081039527,-500.0,0.00021917,2]
[341673115,1731081039536,-500.0,0.00021917,2]
[341673116,1731081039545,-502.01288513,0.00021917,2]
[341673117,1731081039553,-500.0,0.00021917,2]
[341673118,1731081039563,-500.0,0.00021917,2]
[341673119,1731081039573,-500.0,0.00021917,2]
[341673120,1731081039582,-500.0,0.00021917,2]
[341673121,1731081039591,-500.0,0.00021917,2]
[341673122,1731081039600,-504.68484592,0.00021917,2]
[341673123,1731081039612,-507.42405876,0.00021917,2]
[341673124,1731081039621,-500.0,0.00021917,2]
[341673125,1731081039630,-500.0,0.00021917,2]
[341673126,1731081039639,-504.71395374,0.00021917,2]
[341673127,1731081039650,-500.0,0.00021917,2]
[341673128,1731081039660,-500.0,0.00021917,2]
[341673129,1731081039669,-500.0,0.00021917,2]
[341673130,1731081039678,-500.0,0.00021917,2]
[341673131,1731081039690,-595.6971547,0.00021917,2]
[341673132,1731081039700,-500.0,0.00021917,2]
[341673133,1731081039818,-500.0,0.00021917,2]
[341673134,1731081039827,-500.0,0.00021917,2]
[341673135,1731081039836,-500.0,0.00021917,2]
[341673136,1731081039845,-500.0,0.00021917,2]
[341673137,1731081039855,-500.0,0.00021917,2]
[341673138,1731081039863,-500.0,0.00021917,2]
[341673139,1731081039873,-500.0,0.00021917,2]
[341673140,1731081039882,-500.0,0.00021917,2]
[341673141,1731081039891,-500.0,0.00021917,2]
[341673143,1731081039901,-500.0,0.00021917,2]
[341673145,1731081039910,-500.0,0.00021917,2]
[341673147,1731081039920,-505.52063787,0.00021917,2]
[341673148,1731081039929,-500.0,0.00021917,2]
[341673149,1731081039948,-500.0,0.00021917,2]
[341673150,1731081039960,-500.0,0.00021917,2]
[341673151,1731081039971,-500.0,0.00021917,2]
[341673152,1731081039981,-500.0,0.00021917,2]
[341673153,1731081039991,-411.81368865,0.00021917,2]
[341673154,1731081040003,-168.34652908,0.00021917,2]
[341673155,1731081040012,-500.0,0.00021917,2]
[341673156,1731081040023,-500.0,0.00021917,2]
[341673157,1731081040033,-500.0,0.00021917,2]
[341673158,1731081040043,-504.07339655,0.00021917,2]
[341673159,1731081040052,-500.0,0.00021917,2]
[341673160,1731081040062,-530.27081933,0.00021917,2]
[341673162,1731081040072,-500.0,0.00021917,2]
[341673163,1731081040081,-500.0,0.00021917,2]
[341673165,1731081040091,-500.0,0.00021917,2]
[341673166,1731081040101,-173.86,0.00021917,2]
[341673167,1731081040110,-503.63557261,0.00021917,2]
[341673168,1731081040120,-500.0,0.00021917,2]
[341673169,1731081040130,-500.0,0.00021917,2]
[341673170,1731081040140,-506.33631443,0.00021917,2]
[341673171,1731081040150,-500.0,0.00021917,2]
[341673172,1731081040159,-513.34728484,0.00021917,2]
[341673173,1731081040169,-500.0,0.00021917,2]
[341673174,1731081040178,-351.1048532,0.00021917,2]
[341673175,1731081040188,-500.0,0.00021917,2]
[341673176,1731081040198,-500.0,0.00021917,2]
[341673177,1731081040207,-328.71817147,0.00021917,2]
[341673178,1731081040217,-500.88436348,0.00021917,2]
[341673179,1731081040227,-500.0,0.00021917,2]
[341673180,1731081040236,-506.84153475,0.00021917,2]
[341673181,1731081040248,-500.0,0.00021917,2]
[341673182,1731081040257,-500.0,0.00021917,2]
[341673183,1731081040267,-500.0,0.00021917,2]
[341673184,1731081040277,-500.0,0.00021917,2]
[341673185,1731081040287,-500.0,0.00021917,2]
[341673186,1731081040296,-500.0,0.00021917,2]
[341673187,1731081040307,-500.0,0.00021917,2]
[341673188,1731081040317,-527.69475288,0.00021917,2]
[341673189,1731081040327,-500.0,0.00021917,2]
[341673190,1731081040336,-505.01705267,0.00021917,2]
[341673191,1731081040346,-500.0,0.00021917,2]
[341673192,1731081040356,-500.0,0.00021917,2]
[341673193,1731081040365,-500.0,0.00021917,2]
[341673195,1731081040375,-500.0,0.00021917,2]
[341673197,1731081040385,-500.0,0.00021917,2]
[341673198,1731081040395,-500.0,0.00021917,2]
[341673199,1731081040404,-637.77403834,0.00021917,2]
[341673200,1731081040414,-500.0,0.00021917,2]
[341673201,1731081040424,-415.76703279,0.00021917,2]
[341673202,1731081040433,-502.47645029,0.00021917,2]
[341673203,1731081040443,-500.0,0.00021917,2]
[341673204,1731081040452,-592.72778681,0.00021917,2]
[341673205,1731081040462,-636.16102454,0.00021917,2]
[341673206,1731081040472,-514.89415712,0.00021917,2]
[341673207,1731081040481,-250.0,0.00021917,2]
[341673208,1731081040490,-500.0,0.00021917,2]
[341673209,1731081040501,-500.0,0.00021917,2]
[341673210,1731081040510,-500.0,0.00021917,2]
[341673211,1731081040520,-500.0,0.00021917,2]
[341673212,1731081040530,-352.48840326,0.00021917,2]
[341673213,1731081040539,-516.74791874,0.00021917,2]
[341673214,1731081040549,-500.0,0.00021917,2]
[341673216,1731081040558,-500.0,0.00021917,2]
[341673218,1731081040568,-500.0,0.00021917,2]
[341673219,1731081040577,-500.0,0.00021917,2]
[341673220,1731081040587,-500.0,0.00021917,2]
[341673221,1731081040597,-500.0,0.00021917,2]
[341673222,1731081040608,-500.0,0.00021917,2]
[341673223,1731081040618,-527.61764638,0.00021917,2]
[341673224,1731081040627,-500.0,0.00021917,2]
[341673225,1731081040637,-500.0,0.00021917,2]
[341673226,1731081040648,-500.0,0.00021917,2]
[341673227,1731081040658,-500.0,0.00021917,2]
[341673228,1731081040667,-500.0,0.00021917,2]
[341673229,1731081040677,-500.0,0.00021917,2]
[341673230,1731081040687,-500.0,0.00021917,2]
[341673231,1731081040698,-500.0,0.00021917,2]
[341673232,1731081040707,-500.0,0.00021917,2]
[341673233,1731081040717,-605.87775999,0.00021917,2]
[341673234,1731081040726,-500.0,0.00021917,2]
[341673235,1731081040735,-500.0,0.00021917,2]
[341673236,1731081040744,-500.0,0.00021917,2]
[341673237,1731081040755,-500.0,0.00021917,2]
[341673238,1731081040764,-500.0,0.00021917,2]
[341673239,1731081040774,-500.0,0.00021917,2]
[341673240,1731081040783,-199.08413577,0.00021917,2]
[341673241,1731081040793,-500.0,0.00021917,2]
[341673242,1731081040802,-500.0,0.00021917,2]
[341673243,1731081040812,-500.0,0.00021917,2]
[341673244,1731081040821,-500.0,0.00021917,2]
[341673245,1731081040831,-500.0,0.00021917,2]
[341673246,1731081040840,-500.0,0.00021917,2]
[341673247,1731081040849,-500.0,0.00021917,2]
[341673248,1731081040859,-500.0,0.00021917,2]
[341673249,1731081040868,-500.0,0.00021917,2]
[341673250,1731081040877,-500.0,0.00021917,2]
[341673251,1731081040887,-500.0,0.00021917,2]
[341673252,1731081040896,-500.0,0.00021917,2]
[341673253,1731081040905,-500.0,0.00021917,2]
[341673254,1731081040915,-500.0,0.00021917,2]
[341673255,1731081040924,-554.44706803,0.00021917,2]
[341673256,1731081040933,-500.0,0.00021917,2]
[341673257,1731081040943,-500.0,0.00021917,2]
[341673258,1731081040952,-500.0,0.00021917,2]
[341673259,1731081040961,-500.0,0.00021917,2]
[341673260,1731081040970,-500.0,0.00021917,2]
[341673261,1731081040980,-500.0,0.00021917,2]
[341673262,1731081040989,-500.0,0.00021917,2]
[341673263,1731081041001,-507.28468924,0.00021917,2]
[341673264,1731081041011,-500.0,0.00021917,2]
[341673265,1731081041020,-500.0,0.00021917,2]
[341673266,1731081041030,-514.55172765,0.00021917,2]
[341673267,1731081041040,-500.0,0.00021917,2]
[341673268,1731081041050,-500.0,0.00021917,2]
[341673269,1731081041060,-500.0,0.00021917,2]
[341673270,1731081041070,-500.0,0.00021917,2]
[341673271,1731081041080,-500.0,0.00021917,2]
[341673272,1731081041089,-500.0,0.00021917,2]
[341673273,1731081041098,-500.0,0.00021917,2]